[Event "*** SCC Grand Prix: Titled Tuesday Blitz"]
[Site "Chess.com"]
[Date "2020.10.13"]
[Round "6"]
[White "guillembaches"]
[Black "picturesquecheck"]
[Result "1-0"]
[WhiteElo "2396"]
[BlackElo "2214"]
[TimeControl "180+1"]
[EndTime "11:06:16 PDT"]
[Termination "guillembaches won by resignation"]

1. e4 {[%clk 0:02:22.4]} 1... c5 {[%clk 0:02:47.3]} 2. Nf3 {[%clk 0:02:21.5]}
2... Nc6 {[%clk 0:02:45.8]} 3. d4 {[%clk 0:02:21.1]} 3... cxd4 {[%clk
0:02:44.5]} 4. Nxd4 {[%clk 0:02:22]} 4... Nf6 {[%clk 0:02:39.7]} 5. Nc3 {[%clk
0:02:22.1]} 5... d6 {[%clk 0:02:38.4]} 6. Bg5 {[%clk 0:02:21.8]} 6... e6 {[%clk
0:02:35.8]} 7. Qd2 {[%clk 0:02:21.8]} 7... h6 {[%clk 0:02:34.9]} 8. Bxf6 {[%clk
0:02:21.4]} 8... gxf6 {[%clk 0:02:31.6]} 9. O-O-O {[%clk 0:02:21.4]} 9... Bd7
{[%clk 0:02:27]} 10. f4 {[%clk 0:02:20.9]} 10... Rc8 {[%clk 0:02:24.1]} 11. Ndb5
{[%clk 0:02:19.6]} 11... a6 {[%clk 0:01:16.1]} 12. Nxd6+ {[%clk 0:02:19.2]}
12... Bxd6 {[%clk 0:01:16.5]} 13. Qxd6 {[%clk 0:02:19.1]} 13... Qe7 {[%clk
0:01:17]} 14. Be2 {[%clk 0:02:09.3]} 14... Qxd6 {[%clk 0:01:06.6]} 15. Rxd6
{[%clk 0:02:10.2]} 15... Ne7 {[%clk 0:01:06.4]} 16. Rhd1 {[%clk 0:02:04.5]}
16... Bc6 {[%clk 0:01:06.1]} 17. Bf3 {[%clk 0:01:55.9]} 17... O-O {[%clk
0:00:59.5]} 18. R1d3 {[%clk 0:01:46.5]} 18... Kh7 {[%clk 0:00:52]} 19. a3 {[%clk
0:01:44.8]} 19... f5 {[%clk 0:00:47.9]} 20. e5 {[%clk 0:01:42]} 20... Bxf3
{[%clk 0:00:45.4]} 21. Rxf3 {[%clk 0:01:41.5]} 21... Rc7 {[%clk 0:00:44.1]} 22.
Rfd3 {[%clk 0:01:36.1]} 22... Ng6 {[%clk 0:00:40.9]} 23. g3 {[%clk 0:01:34.9]}
23... Rfc8 {[%clk 0:00:36.8]} 24. Rd7 {[%clk 0:01:30.1]} 24... Kg7 {[%clk
0:00:34.3]} 25. Kd2 {[%clk 0:01:26.3]} 25... Nf8 {[%clk 0:00:30.6]} 26. Rxc7
{[%clk 0:01:25.8]} 26... Rxc7 {[%clk 0:00:25.6]} 27. Rd6 {[%clk 0:01:19.1]}
27... Nd7 {[%clk 0:00:25.3]} 28. b4 {[%clk 0:01:12.1]} 28... Nb8 {[%clk
0:00:22.9]} 29. Ne2 {[%clk 0:01:07.8]} 29... Nc6 {[%clk 0:00:21.2]} 30. c4
{[%clk 0:01:03.2]} 30... Ne7 {[%clk 0:00:20.1]} 31. Kd3 {[%clk 0:00:58.5]} 31...
b5 {[%clk 0:00:19.3]} 32. c5 {[%clk 0:00:57.9]} 32... Nd5 {[%clk 0:00:18.8]} 33.
Nc3 {[%clk 0:00:54.2]} 33... Nxc3 {[%clk 0:00:16.1]} 34. Kxc3 {[%clk 0:00:54.2]}
34... a5 {[%clk 0:00:17]} 1-0

[Event "*** SCC Grand Prix: Titled Tuesday Blitz"]
[Site "Chess.com"]
[Date "2020.10.13"]
[Round "6"]
[White "SabKaD4ddy"]
[Black "PavelChernomordik"]
[Result "1-0"]
[WhiteElo "2522"]
[BlackElo "2324"]
[TimeControl "180+1"]
[EndTime "11:06:18 PDT"]
[Termination "SabKaD4ddy won by resignation"]

1. e4 {[%clk 0:03:00.9]} 1... g6 {[%clk 0:03:00.9]} 2. Nc3 {[%clk 0:03:00.5]}
2... Bg7 {[%clk 0:03:01.3]} 3. g3 {[%clk 0:03:00.7]} 3... d6 {[%clk 0:02:59.6]}
4. Bg2 {[%clk 0:03:00.7]} 4... Nf6 {[%clk 0:02:59.3]} 5. d3 {[%clk 0:03:01.2]}
5... Nbd7 {[%clk 0:02:58.1]} 6. Nge2 {[%clk 0:03:01.8]} 6... c5 {[%clk
0:02:57.2]} 7. h3 {[%clk 0:03:02.6]} 7... O-O {[%clk 0:02:55.8]} 8. Be3 {[%clk
0:03:03.2]} 8... Rb8 {[%clk 0:02:54.2]} 9. Qd2 {[%clk 0:03:03.8]} 9... b5 {[%clk
0:02:52.5]} 10. Bh6 {[%clk 0:03:04.5]} 10... b4 {[%clk 0:02:49.6]} 11. Nd1
{[%clk 0:03:05.1]} 11... e5 {[%clk 0:02:47.1]} 12. Bxg7 {[%clk 0:03:05.4]} 12...
Kxg7 {[%clk 0:02:44.8]} 13. Ne3 {[%clk 0:03:06.3]} 13... Bb7 {[%clk 0:02:42.7]}
14. f4 {[%clk 0:03:05.6]} 14... Nb6 {[%clk 0:02:36.5]} 15. O-O {[%clk
0:03:04.4]} 15... c4 {[%clk 0:02:24.7]} 16. Qxb4 {[%clk 0:02:58.3]} 16... cxd3
{[%clk 0:02:22.2]} 17. cxd3 {[%clk 0:02:59.2]} 17... Ba6 {[%clk 0:02:21.7]} 18.
Qd2 {[%clk 0:02:58.2]} 18... Na4 {[%clk 0:02:18.3]} 19. b4 {[%clk 0:02:52.6]}
19... Qb6 {[%clk 0:02:14.3]} 20. Rab1 {[%clk 0:02:35]} 20... Nd7 {[%clk
0:01:58.6]} 21. Kh2 {[%clk 0:02:31.7]} 21... Bb7 {[%clk 0:01:56]} 22. Nc4 {[%clk
0:02:24.5]} 22... Qa6 {[%clk 0:01:51]} 23. b5 {[%clk 0:02:21.7]} 23... Qb6
{[%clk 0:01:39.4]} 24. Nxb6 {[%clk 0:02:19.3]} 24... Ndxb6 {[%clk 0:01:38.4]}
25. Rfc1 {[%clk 0:02:15.9]} 25... d5 {[%clk 0:01:30.3]} 26. fxe5 {[%clk
0:02:03.4]} 26... dxe4 {[%clk 0:01:29.1]} 27. Bxe4 {[%clk 0:02:02.8]} 27... Bxe4
{[%clk 0:01:28]} 28. dxe4 {[%clk 0:02:03.7]} 28... Rbd8 {[%clk 0:01:26.3]} 29.
Qf4 {[%clk 0:02:01.8]} 29... Nd7 {[%clk 0:01:18.6]} 30. Rd1 {[%clk 0:01:52.1]}
30... Nab6 {[%clk 0:01:18.1]} 31. Nd4 {[%clk 0:01:45.8]} 31... Rc8 {[%clk
0:01:15.8]} 32. e6 {[%clk 0:01:45.6]} 32... Nc5 {[%clk 0:01:13.2]} 33. e7 {[%clk
0:01:44]} 33... Rfe8 {[%clk 0:01:11.4]} 34. e5 {[%clk 0:01:36.3]} 34... Nbd7
{[%clk 0:01:05.2]} 35. Nc6 {[%clk 0:01:31.4]} 35... a6 {[%clk 0:01:03]} 36. a4
{[%clk 0:01:30]} 36... axb5 {[%clk 0:01:00.4]} 37. axb5 {[%clk 0:01:30.9]} 37...
Ra8 {[%clk 0:01:00]} 38. Rd2 {[%clk 0:01:24.2]} 38... Ne6 {[%clk 0:00:51.2]} 39.
Qf2 {[%clk 0:01:16.6]} 39... Ndc5 {[%clk 0:00:48.9]} 40. Rf1 {[%clk 0:01:15.2]}
40... Ng5 {[%clk 0:00:44.6]} 41. Qxc5 {[%clk 0:01:05.5]} 41... Ne4 {[%clk
0:00:39.8]} 42. Qe3 {[%clk 0:01:03.8]} 42... Nxd2 {[%clk 0:00:39]} 43. Qxd2
{[%clk 0:01:04.7]} 1-0

[Event "*** SCC Grand Prix: Titled Tuesday Blitz"]
[Site "Chess.com"]
[Date "2020.10.13"]
[Round "6"]
[White "KuzubovYuriy"]
[Black "Baby_Legs"]
[Result "1-0"]
[WhiteElo "2890"]
[BlackElo "2702"]
[TimeControl "180+1"]
[EndTime "11:06:21 PDT"]
[Termination "KuzubovYuriy won by resignation"]

1. d4 {[%clk 0:03:00.9]} 1... Nf6 {[%clk 0:02:58.8]} 2. Nf3 {[%clk 0:02:59.5]}
2... e6 {[%clk 0:02:58]} 3. c4 {[%clk 0:02:59.1]} 3... d5 {[%clk 0:02:57.1]} 4.
g3 {[%clk 0:02:59.3]} 4... c6 {[%clk 0:02:55.6]} 5. Bg2 {[%clk 0:02:56.5]} 5...
dxc4 {[%clk 0:02:55.8]} 6. O-O {[%clk 0:02:55.9]} 6... b5 {[%clk 0:02:55.4]} 7.
Qc2 {[%clk 0:02:45.3]} 7... Bb7 {[%clk 0:02:55.1]} 8. e4 {[%clk 0:02:44.7]} 8...
Be7 {[%clk 0:02:54.2]} 9. Nc3 {[%clk 0:02:41.3]} 9... a6 {[%clk 0:02:52.9]} 10.
e5 {[%clk 0:02:34.1]} 10... Nd5 {[%clk 0:02:50.2]} 11. Ne4 {[%clk 0:02:33.8]}
11... h6 {[%clk 0:02:50.3]} 12. b3 {[%clk 0:02:25.9]} 12... cxb3 {[%clk
0:02:33.8]} 13. axb3 {[%clk 0:02:26.8]} 13... Nd7 {[%clk 0:02:32.8]} 14. Bd2
{[%clk 0:02:07.9]} 14... a5 {[%clk 0:02:28.6]} 15. Nc5 {[%clk 0:02:00.9]} 15...
Nxc5 {[%clk 0:02:18.8]} 16. dxc5 {[%clk 0:02:00.8]} 16... O-O {[%clk 0:02:13]}
17. Rfc1 {[%clk 0:01:53.3]} 17... Qc7 {[%clk 0:02:11.9]} 18. Qe4 {[%clk
0:01:51.8]} 18... b4 {[%clk 0:02:03.3]} 19. Qg4 {[%clk 0:01:45.1]} 19... Kh7
{[%clk 0:01:58.8]} 20. h4 {[%clk 0:01:34]} 20... Ba6 {[%clk 0:01:58]} 21. Qe4+
{[%clk 0:01:27.9]} 21... Kg8 {[%clk 0:01:56.4]} 22. Nh2 {[%clk 0:01:25.3]} 22...
f5 {[%clk 0:01:36]} 23. exf6 {[%clk 0:01:22.7]} 23... Bxf6 {[%clk 0:01:36.3]}
24. Qxe6+ {[%clk 0:01:22.2]} 24... Kh8 {[%clk 0:01:34.4]} 25. Ra2 {[%clk
0:01:08.8]} 25... Bd4 {[%clk 0:01:26.5]} 26. Bxh6 {[%clk 0:01:03.2]} 26... Rae8
{[%clk 0:01:14.1]} 27. Qg4 {[%clk 0:00:58.3]} 27... Bxf2+ {[%clk 0:00:42.7]} 28.
Rxf2 {[%clk 0:00:57.1]} 28... Rxf2 {[%clk 0:00:42.9]} 29. Bxg7+ {[%clk
0:00:45.4]} 29... Qxg7 {[%clk 0:00:43.8]} 30. Qh5+ {[%clk 0:00:45]} 30... Kg8
{[%clk 0:00:41.3]} 31. Qxe8+ {[%clk 0:00:42.9]} 31... Rf8 {[%clk 0:00:40.8]} 32.
Qxc6 {[%clk 0:00:39.2]} 32... Ne3 {[%clk 0:00:38.6]} 33. Qe6+ {[%clk 0:00:27.3]}
33... Kh8 {[%clk 0:00:35]} 34. Qxe3 {[%clk 0:00:27]} 1-0

[Event "*** SCC Grand Prix: Titled Tuesday Blitz"]
[Site "Chess.com"]
[Date "2020.10.13"]
[Round "6"]
[White "ChelsieMonica"]
[Black "Beltraxtor"]
[Result "1-0"]
[WhiteElo "2388"]
[BlackElo "2535"]
[TimeControl "180+1"]
[EndTime "11:06:21 PDT"]
[Termination "ChelsieMonica won by resignation"]

1. Nc3 {[%clk 0:02:30.2]} 1... d5 {[%clk 0:02:57.2]} 2. d4 {[%clk 0:02:29.4]}
2... Bf5 {[%clk 0:02:56.9]} 3. Nf3 {[%clk 0:02:28.4]} 3... Nf6 {[%clk
0:02:53.7]} 4. e3 {[%clk 0:02:28.6]} 4... c6 {[%clk 0:02:52.7]} 5. Bd3 {[%clk
0:02:28.4]} 5... g6 {[%clk 0:02:52.4]} 6. Bxf5 {[%clk 0:02:26.9]} 6... gxf5
{[%clk 0:02:53.3]} 7. Ne5 {[%clk 0:02:27.7]} 7... Nbd7 {[%clk 0:02:52.1]} 8. f4
{[%clk 0:02:24.9]} 8... e6 {[%clk 0:02:51.3]} 9. O-O {[%clk 0:02:21.7]} 9... Bb4
{[%clk 0:02:49.8]} 10. Bd2 {[%clk 0:02:21.7]} 10... Rg8 {[%clk 0:02:45.3]} 11.
Kh1 {[%clk 0:02:20]} 11... Ng4 {[%clk 0:02:41.6]} 12. Nxg4 {[%clk 0:02:17.1]}
12... Rxg4 {[%clk 0:02:42.5]} 13. Ne2 {[%clk 0:02:11.7]} 13... Bd6 {[%clk
0:02:37.5]} 14. h3 {[%clk 0:02:08.2]} 14... Qh4 {[%clk 0:02:27.3]} 15. Be1
{[%clk 0:02:04.7]} 15... Qh6 {[%clk 0:02:26.9]} 16. c4 {[%clk 0:01:47.7]} 16...
Nf6 {[%clk 0:02:20.6]} 17. cxd5 {[%clk 0:01:40.8]} 17... exd5 {[%clk 0:02:20.2]}
18. Nc3 {[%clk 0:01:38.2]} 18... Ke7 {[%clk 0:02:12.4]} 19. Qd3 {[%clk
0:01:38.2]} 19... Rag8 {[%clk 0:02:04.7]} 20. Qxf5 {[%clk 0:00:54.7]} 20... Rxg2
{[%clk 0:02:01.3]} 21. Bf2 {[%clk 0:00:55]} 21... R2g4 {[%clk 0:01:43.2]} 22.
Kh2 {[%clk 0:00:52.7]} 22... Rg2+ {[%clk 0:01:32.1]} 23. Kh1 {[%clk 0:00:52.8]}
23... R8g4 {[%clk 0:01:06.7]} 24. h4 {[%clk 0:00:51.9]} 24... Nh5 {[%clk
0:00:36.9]} 25. Rg1 {[%clk 0:00:45]} 25... Ng3+ {[%clk 0:00:30]} 26. Bxg3 {[%clk
0:00:39.8]} 26... R2xg3 {[%clk 0:00:20.9]} 27. Qxg4 {[%clk 0:00:39.7]} 27...
Rxg4 {[%clk 0:00:20.3]} 28. Rxg4 {[%clk 0:00:40.6]} 28... f5 {[%clk 0:00:20.3]}
29. Rg5 {[%clk 0:00:40]} 29... Qxh4+ {[%clk 0:00:20.3]} 30. Kg2 {[%clk 0:00:40]}
30... Kf6 {[%clk 0:00:19]} 31. Rh1 {[%clk 0:00:37.9]} 1-0

[Event "*** SCC Grand Prix: Titled Tuesday Blitz"]
[Site "Chess.com"]
[Date "2020.10.13"]
[Round "6"]
[White "swayamsm"]
[Black "Anton_Demchenko"]
[Result "0-1"]
[WhiteElo "2628"]
[BlackElo "2812"]
[TimeControl "180+1"]
[EndTime "11:06:26 PDT"]
[Termination "Anton_Demchenko won by resignation"]

1. d4 {[%clk 0:03:00.9]} 1... Nf6 {[%clk 0:02:58.4]} 2. Nf3 {[%clk 0:03:01.3]}
2... g6 {[%clk 0:02:57.6]} 3. c4 {[%clk 0:03:01]} 3... Bg7 {[%clk 0:02:57.9]} 4.
Nc3 {[%clk 0:03:01.9]} 4... O-O {[%clk 0:02:58.5]} 5. e4 {[%clk 0:03:02.3]} 5...
d6 {[%clk 0:02:59.2]} 6. Be2 {[%clk 0:03:03.2]} 6... Nbd7 {[%clk 0:02:59.9]} 7.
O-O {[%clk 0:03:03.7]} 7... e5 {[%clk 0:03:00.6]} 8. Re1 {[%clk 0:03:04.2]} 8...
Re8 {[%clk 0:02:54.8]} 9. Bf1 {[%clk 0:03:03.6]} 9... exd4 {[%clk 0:02:53.8]}
10. Nxd4 {[%clk 0:03:02.2]} 10... c6 {[%clk 0:02:54.7]} 11. Bf4 {[%clk
0:02:57.5]} 11... Ne5 {[%clk 0:02:50.6]} 12. Qd2 {[%clk 0:02:52.3]} 12... Qe7
{[%clk 0:02:29.5]} 13. Rad1 {[%clk 0:02:52.2]} 13... a5 {[%clk 0:02:07.6]} 14.
b3 {[%clk 0:02:50]} 14... Qf8 {[%clk 0:02:00.2]} 15. Nc2 {[%clk 0:02:36.2]}
15... Nh5 {[%clk 0:02:00.1]} 16. Be3 {[%clk 0:02:32]} 16... f5 {[%clk
0:01:51.7]} 17. Qxd6 {[%clk 0:02:22.5]} 17... Qf7 {[%clk 0:01:45.9]} 18. exf5
{[%clk 0:02:14.2]} 18... Bxf5 {[%clk 0:01:45.5]} 19. Nd4 {[%clk 0:02:12.2]}
19... Bg4 {[%clk 0:01:38.3]} 20. Qa3 {[%clk 0:01:59.5]} 20... Bxd1 {[%clk
0:01:37.2]} 21. Rxd1 {[%clk 0:02:00.1]} 21... Ng4 {[%clk 0:01:36.1]} 22. Qc1
{[%clk 0:01:51.3]} 22... Nxe3 {[%clk 0:01:31.3]} 23. fxe3 {[%clk 0:01:52.2]}
23... Bh6 {[%clk 0:01:31.7]} 24. Nc2 {[%clk 0:01:49.9]} 24... Rad8 {[%clk
0:01:25]} 25. Rxd8 {[%clk 0:01:45.5]} 25... Rxd8 {[%clk 0:01:24.8]} 26. Qe1
{[%clk 0:01:42.5]} 26... Qe7 {[%clk 0:01:19.3]} 27. g3 {[%clk 0:01:33.2]} 27...
Nf6 {[%clk 0:01:17.7]} 28. Bg2 {[%clk 0:01:30.1]} 28... Qd6 {[%clk 0:01:11.8]}
29. Nd4 {[%clk 0:01:28.2]} 29... Bxe3+ {[%clk 0:01:07.9]} 30. Qxe3 {[%clk
0:01:29.1]} 30... Qxd4 {[%clk 0:01:08.5]} 31. Qxd4 {[%clk 0:01:28.3]} 31... Rxd4
{[%clk 0:01:09.4]} 32. Na4 {[%clk 0:01:28]} 32... Nd7 {[%clk 0:01:07.4]} 33. Bh3
{[%clk 0:01:27.7]} 33... Ne5 {[%clk 0:01:03.9]} 34. Nc5 {[%clk 0:01:26]} 34...
b6 {[%clk 0:01:03.8]} 35. Na4 {[%clk 0:01:17.2]} 35... b5 {[%clk 0:00:59.7]} 36.
cxb5 {[%clk 0:01:16.4]} 36... cxb5 {[%clk 0:01:00.6]} 37. Nc3 {[%clk 0:01:16.8]}
37... b4 {[%clk 0:01:00.5]} 38. Nd5 {[%clk 0:01:15.7]} 38... Kg7 {[%clk
0:01:00.1]} 39. Nf4 {[%clk 0:01:14.4]} 39... Rd1+ {[%clk 0:00:59.2]} 40. Bf1
{[%clk 0:01:12.3]} 40... Rd2 {[%clk 0:00:59.4]} 41. Bg2 {[%clk 0:01:07.7]} 41...
Rxa2 {[%clk 0:00:58.7]} 42. Bd5 {[%clk 0:01:07.9]} 42... Kf6 {[%clk 0:00:55.8]}
43. h4 {[%clk 0:01:08.1]} 43... h6 {[%clk 0:00:48.4]} 44. Kf1 {[%clk 0:01:07.4]}
44... g5 {[%clk 0:00:47.9]} 45. hxg5+ {[%clk 0:01:08.3]} 45... hxg5 {[%clk
0:00:47.8]} 46. Ne2 {[%clk 0:01:09.2]} 46... Ng4 {[%clk 0:00:43.7]} 47. Bg8
{[%clk 0:01:07.4]} 47... Ne3+ {[%clk 0:00:42.2]} 48. Kf2 {[%clk 0:01:07.8]}
48... Nf5 {[%clk 0:00:39.1]} 49. Kf3 {[%clk 0:01:04.5]} 49... g4+ {[%clk
0:00:37.6]} 0-1

[Event "*** SCC Grand Prix: Titled Tuesday Blitz"]
[Site "Chess.com"]
[Date "2020.10.13"]
[Round "6"]
[White "manitodeplomo"]
[Black "Omk124"]
[Result "0-1"]
[WhiteElo "2604"]
[BlackElo "2488"]
[TimeControl "180+1"]
[EndTime "11:06:28 PDT"]
[Termination "Omk124 won on time"]

1. d4 {[%clk 0:03:00.9]} 1... Nf6 {[%clk 0:02:58.9]} 2. c4 {[%clk 0:03:00.5]}
2... g6 {[%clk 0:02:57.8]} 3. Nc3 {[%clk 0:03:00.3]} 3... d5 {[%clk 0:02:56.2]}
4. Bf4 {[%clk 0:02:59.5]} 4... Bg7 {[%clk 0:02:54.9]} 5. e3 {[%clk 0:03:00]}
5... O-O {[%clk 0:02:53]} 6. Rc1 {[%clk 0:02:59.9]} 6... c5 {[%clk 0:02:52.1]}
7. dxc5 {[%clk 0:03:00.8]} 7... Be6 {[%clk 0:02:52.2]} 8. Nf3 {[%clk 0:03:00.2]}
8... Ne4 {[%clk 0:02:50.5]} 9. Qb3 {[%clk 0:02:43.3]} 9... Nxc3 {[%clk
0:02:45.9]} 10. bxc3 {[%clk 0:02:42.4]} 10... Nc6 {[%clk 0:02:46.3]} 11. Qxb7
{[%clk 0:02:25.7]} 11... Na5 {[%clk 0:02:46.2]} 12. Qc7 {[%clk 0:02:19.6]} 12...
Nxc4 {[%clk 0:02:39.9]} 13. Qxd8 {[%clk 0:02:09.4]} 13... Rfxd8 {[%clk
0:02:40.8]} 14. Nd4 {[%clk 0:02:09.8]} 14... Rdc8 {[%clk 0:02:24.1]} 15. Bxc4
{[%clk 0:01:47]} 15... dxc4 {[%clk 0:02:23.7]} 16. c6 {[%clk 0:01:46.7]} 16...
Bxd4 {[%clk 0:02:23.7]} 17. cxd4 {[%clk 0:01:46.6]} 17... Rxc6 {[%clk
0:02:24.2]} 18. e4 {[%clk 0:01:46.6]} 18... Ra6 {[%clk 0:02:09.3]} 19. d5 {[%clk
0:01:46.2]} 19... Bd7 {[%clk 0:02:09.7]} 20. Rxc4 {[%clk 0:01:45.1]} 20... Rxa2
{[%clk 0:02:09.3]} 21. h4 {[%clk 0:01:07.2]} 21... a5 {[%clk 0:02:02.1]} 22. h5
{[%clk 0:01:03]} 22... a4 {[%clk 0:01:59.4]} 23. hxg6 {[%clk 0:01:03.1]} 23...
hxg6 {[%clk 0:01:59.5]} 24. Rc7 {[%clk 0:00:59.9]} 24... a3 {[%clk 0:01:58.8]}
25. Be5 {[%clk 0:00:43.5]} 25... f6 {[%clk 0:01:58.8]} 26. Bd4 {[%clk
0:00:41.3]} 26... Rc8 {[%clk 0:01:42.2]} 27. Rxc8+ {[%clk 0:00:35.8]} 27... Bxc8
{[%clk 0:01:43.1]} 28. d6 {[%clk 0:00:34.9]} 28... exd6 {[%clk 0:01:41.8]} 29.
Bxf6 {[%clk 0:00:34.8]} 29... Kf7 {[%clk 0:01:42.4]} 30. Bd4 {[%clk 0:00:34.6]}
30... Ba6 {[%clk 0:01:42.3]} 31. Rh7+ {[%clk 0:00:33.9]} 31... Ke6 {[%clk
0:01:41.7]} 32. f3 {[%clk 0:00:25.2]} 32... Re2+ {[%clk 0:01:38.8]} 33. Kd1
{[%clk 0:00:25.2]} 33... Rxg2 {[%clk 0:01:38.9]} 34. Ra7 {[%clk 0:00:25.5]}
34... Be2+ {[%clk 0:01:37]} 35. Ke1 {[%clk 0:00:24]} 35... Bxf3 {[%clk
0:01:34.5]} 36. Rxa3 {[%clk 0:00:23.6]} 36... Bxe4 {[%clk 0:01:35.1]} 37. Re3
{[%clk 0:00:23.4]} 37... d5 {[%clk 0:01:34.5]} 38. Re2 {[%clk 0:00:23.4]} 38...
Rg3 {[%clk 0:01:32.3]} 39. Re3 {[%clk 0:00:23.9]} 39... Rg1+ {[%clk 0:01:32.4]}
40. Kd2 {[%clk 0:00:22.5]} 40... Rb1 {[%clk 0:01:32.1]} 41. Re1 {[%clk
0:00:19.2]} 41... Rb4 {[%clk 0:01:31]} 42. Ke3 {[%clk 0:00:18.7]} 42... Rb3+
{[%clk 0:01:30.8]} 43. Kf4 {[%clk 0:00:15.8]} 43... Rf3+ {[%clk 0:01:29.8]} 44.
Kg5 {[%clk 0:00:15.8]} 44... Rg3+ {[%clk 0:01:30.1]} 45. Kf4 {[%clk 0:00:15.4]}
45... Rg2 {[%clk 0:01:28.9]} 46. Rg1 {[%clk 0:00:13.1]} 46... g5+ {[%clk
0:01:25.1]} 0-1

[Event "*** SCC Grand Prix: Titled Tuesday Blitz"]
[Site "Chess.com"]
[Date "2020.10.13"]
[Round "6"]
[White "vanea_03"]
[Black "bocah_sakit"]
[Result "0-1"]
[WhiteElo "2692"]
[BlackElo "2876"]
[TimeControl "180+1"]
[EndTime "11:06:29 PDT"]
[Termination "bocah_sakit won by resignation"]

1. d4 {[%clk 0:03:00.9]} 1... Nf6 {[%clk 0:02:59.8]} 2. c4 {[%clk 0:03:01.2]}
2... g6 {[%clk 0:03:00.4]} 3. Nf3 {[%clk 0:03:01.4]} 3... Bg7 {[%clk 0:03:01.3]}
4. e3 {[%clk 0:03:02]} 4... d6 {[%clk 0:03:02.2]} 5. Be2 {[%clk 0:03:02.4]} 5...
O-O {[%clk 0:03:03.1]} 6. Nc3 {[%clk 0:03:03]} 6... Nbd7 {[%clk 0:03:01.4]} 7.
O-O {[%clk 0:03:03.5]} 7... e5 {[%clk 0:03:02]} 8. Qc2 {[%clk 0:03:04.1]} 8...
c6 {[%clk 0:03:02.2]} 9. Rd1 {[%clk 0:03:04]} 9... Qe7 {[%clk 0:03:02.3]} 10. e4
{[%clk 0:02:56]} 10... exd4 {[%clk 0:03:00.8]} 11. Nxd4 {[%clk 0:02:56.9]} 11...
Re8 {[%clk 0:03:00.8]} 12. f3 {[%clk 0:02:43.7]} 12... a5 {[%clk 0:03:00.4]} 13.
Bf1 {[%clk 0:02:41.4]} 13... h5 {[%clk 0:02:58.9]} 14. Bg5 {[%clk 0:02:36.2]}
14... Qe5 {[%clk 0:02:43.5]} 15. Qd2 {[%clk 0:02:36.3]} 15... Nh7 {[%clk
0:02:06.2]} 16. Be3 {[%clk 0:02:14]} 16... Qe7 {[%clk 0:01:59.9]} 17. Nc2 {[%clk
0:02:09.3]} 17... a4 {[%clk 0:01:48.8]} 18. Rab1 {[%clk 0:01:53.6]} 18... Be5
{[%clk 0:01:39.9]} 19. Bf4 {[%clk 0:01:25.2]} 19... Nc5 {[%clk 0:01:28.6]} 20.
b4 {[%clk 0:01:06.5]} 20... axb3 {[%clk 0:01:28]} 21. axb3 {[%clk 0:01:06.7]}
21... Qf6 {[%clk 0:01:10.9]} 22. Bxe5 {[%clk 0:00:57.1]} 22... dxe5 {[%clk
0:01:11.8]} 23. b4 {[%clk 0:00:55.4]} 23... Ne6 {[%clk 0:01:11.1]} 24. c5 {[%clk
0:00:55.2]} 24... h4 {[%clk 0:01:09.5]} 25. Bc4 {[%clk 0:00:48.7]} 25... Nhg5
{[%clk 0:01:07.7]} 26. Qe3 {[%clk 0:00:40.6]} 26... h3 {[%clk 0:01:01.1]} 27.
Rd6 {[%clk 0:00:20.7]} 27... hxg2 {[%clk 0:00:59.2]} 28. Be2 {[%clk 0:00:18.3]}
28... Nh3+ {[%clk 0:00:53.4]} 29. Kxg2 {[%clk 0:00:18.8]} 29... Nef4+ {[%clk
0:00:54]} 30. Kh1 {[%clk 0:00:17.2]} 30... Qg5 {[%clk 0:00:51.4]} 31. Bf1 {[%clk
0:00:13.9]} 31... Be6 {[%clk 0:00:50.6]} 32. Re1 {[%clk 0:00:08.2]} 32... Kg7
{[%clk 0:00:47.4]} 33. Bxh3 {[%clk 0:00:07.6]} 33... Bxh3 {[%clk 0:00:46.2]} 0-1

[Event "*** SCC Grand Prix: Titled Tuesday Blitz"]
[Site "Chess.com"]
[Date "2020.10.13"]
[Round "6"]
[White "Ermito2020"]
[Black "dretch"]
[Result "1-0"]
[WhiteElo "2686"]
[BlackElo "2828"]
[TimeControl "180+1"]
[EndTime "11:06:31 PDT"]
[Termination "Ermito2020 won on time"]

1. e4 {[%clk 0:03:00.9]} 1... e6 {[%clk 0:03:00]} 2. d4 {[%clk 0:02:59.8]} 2...
d5 {[%clk 0:03:00.6]} 3. Nc3 {[%clk 0:03:00.3]} 3... Nf6 {[%clk 0:03:00.2]} 4.
e5 {[%clk 0:03:00.7]} 4... Nfd7 {[%clk 0:03:00.6]} 5. f4 {[%clk 0:03:01.3]} 5...
c5 {[%clk 0:03:01.2]} 6. Nf3 {[%clk 0:03:02]} 6... Nc6 {[%clk 0:03:01.8]} 7. Be3
{[%clk 0:03:02.4]} 7... cxd4 {[%clk 0:03:02.4]} 8. Nxd4 {[%clk 0:03:01.8]} 8...
Bc5 {[%clk 0:03:03.3]} 9. Qd2 {[%clk 0:03:02.1]} 9... O-O {[%clk 0:03:03.9]} 10.
O-O-O {[%clk 0:03:02]} 10... a6 {[%clk 0:03:04.6]} 11. h4 {[%clk 0:02:52]} 11...
Nxd4 {[%clk 0:03:03.6]} 12. Bxd4 {[%clk 0:02:51]} 12... b5 {[%clk 0:03:04.5]}
13. h5 {[%clk 0:02:40.8]} 13... b4 {[%clk 0:03:04.3]} 14. Na4 {[%clk 0:02:38.7]}
14... Bxd4 {[%clk 0:03:03.3]} 15. Qxd4 {[%clk 0:02:38.4]} 15... Qa5 {[%clk
0:03:03]} 16. b3 {[%clk 0:02:36.6]} 16... Bb7 {[%clk 0:03:03.4]} 17. Kb1 {[%clk
0:02:33.7]} 17... Rfc8 {[%clk 0:02:59.5]} 18. Bd3 {[%clk 0:02:31.7]} 18... Bc6
{[%clk 0:02:58.8]} 19. Nb2 {[%clk 0:02:29.5]} 19... Bb5 {[%clk 0:02:53.1]} 20.
h6 {[%clk 0:02:24.9]} 20... g6 {[%clk 0:02:52.5]} 21. g4 {[%clk 0:02:21.5]}
21... Qc7 {[%clk 0:02:49.6]} 22. Rhf1 {[%clk 0:02:05.9]} 22... Bxd3 {[%clk
0:02:47.9]} 23. cxd3 {[%clk 0:01:48.4]} 23... Qc3 {[%clk 0:02:46.3]} 24. Qf2
{[%clk 0:01:45.8]} 24... Qc5 {[%clk 0:02:20.4]} 25. d4 {[%clk 0:01:43.9]} 25...
Qe7 {[%clk 0:02:15.1]} 26. f5 {[%clk 0:01:42.9]} 26... Rc3 {[%clk 0:02:06.1]}
27. Na4 {[%clk 0:01:40.3]} 27... Rc7 {[%clk 0:02:01.6]} 28. Rd3 {[%clk
0:01:31.6]} 28... Rac8 {[%clk 0:01:55.9]} 29. Rf3 {[%clk 0:01:31]} 29... Qg5
{[%clk 0:01:54.2]} 30. Rf4 {[%clk 0:01:31.2]} 30... Qxh6 {[%clk 0:01:42]} 31.
fxe6 {[%clk 0:01:30.6]} 31... fxe6 {[%clk 0:01:41.9]} 32. Qd2 {[%clk 0:01:30.6]}
32... g5 {[%clk 0:01:38.8]} 33. Rf7 {[%clk 0:01:02.1]} 33... Qg6+ {[%clk
0:01:37.1]} 34. Ka1 {[%clk 0:01:01.7]} 34... Rc2 {[%clk 0:00:20.7]} 35. Qxb4
{[%clk 0:00:59.5]} 35... Rc1+ {[%clk 0:00:14.2]} 36. Kb2 {[%clk 0:00:58.5]}
36... Rxf1 {[%clk 0:00:06.7]} 37. Rxf1 {[%clk 0:00:57.6]} 37... Qc2+ {[%clk
0:00:05.7]} 38. Ka3 {[%clk 0:00:57.5]} 38... Nf8 {[%clk 0:00:03.1]} 39. Qe7
{[%clk 0:00:55.6]} 39... a5 {[%clk 0:00:02.6]} 40. Rf7 {[%clk 0:00:52.4]} 1-0